[Event "Titled Tuesday Blitz January 31 Late 2023"]
[White "Hernandez Sanchez, Elvis De La Caridad"]
[Black "Foerster-Yialamas, Lucas"]
[WhiteFideId "6400353"]
[BlackFideId "30901774"]
[WhiteElo "2243"]
[BlackElo "2151"]
[Result "1/2-1/2"]
[Round "02"]
[TimeControl "180+2"]
[Date "2023.01.31"]
[WhiteClock "0:00:21"]
[BlackClock "0:00:37"]

1. e4 {[%clk 0:03:00]}  e6 {[%clk 0:03:00]} 2. d4 {[%clk 0:02:59]}  b6 {[%clk 0:02:59]} 3. Bd3 {[%clk 0:02:57]}  Bb7 {[%clk 0:02:57]} 4. Nf3 {[%clk 0:02:55]}  Nf6 {[%clk 0:02:54]} 5. Qe2 {[%clk 0:02:54]}  d5 {[%clk 0:02:53]} 6. e5 {[%clk 0:02:49]}  Ne4 {[%clk 0:02:53]} 7. Nbd2 {[%clk 0:02:49]}  Nxd2 {[%clk 0:02:51]} 8. Bxd2 {[%clk 0:02:50]}  c5 {[%clk 0:02:51]} 9. c3 {[%clk 0:02:48]}  Nc6 {[%clk 0:02:40]} 10. a3 {[%clk 0:02:42]}  Be7 {[%clk 0:02:40]} 11. h4 {[%clk 0:02:41]}  a6 {[%clk 0:02:37]} 12. Rh3 {[%clk 0:02:36]}  g6 {[%clk 0:02:27]} 13. h5 {[%clk 0:02:32]}  g5 {[%clk 0:02:25]} 14. Rg3 {[%clk 0:02:11]}  h6 {[%clk 0:02:25]} 15. b4 {[%clk 0:02:06]}  c4 {[%clk 0:02:23]} 16. Bc2 {[%clk 0:02:04]}  a5 {[%clk 0:02:24]} 17. b5 {[%clk 0:02:01]}  Nb8 {[%clk 0:02:23]} 18. a4 {[%clk 0:01:52]}  Nd7 {[%clk 0:02:23]} 19. Nh2 {[%clk 0:01:52]}  Qc7 {[%clk 0:02:19]} 20. Ng4 {[%clk 0:01:48]}  O-O-O {[%clk 0:02:13]} 21. O-O-O {[%clk 0:01:48]}  Rde8 {[%clk 0:02:02]} 22. Kb1 {[%clk 0:01:43]}  Bd8 {[%clk 0:01:58]} 23. Rf3 {[%clk 0:01:34]}  Ref8 {[%clk 0:01:52]} 24. Bc1 {[%clk 0:01:25]}  Be7 {[%clk 0:01:50]} 25. Re3 {[%clk 0:01:18]}  Rfg8 {[%clk 0:01:44]} 26. Rf3 {[%clk 0:01:18]}  Rf8 {[%clk 0:01:44]} 27. Rg3 {[%clk 0:01:18]}  Re8 {[%clk 0:01:43]} 28. f4 {[%clk 0:01:18]}  f5 {[%clk 0:01:33]} 29. exf6 {[%clk 0:01:15]}  Bxf6 {[%clk 0:01:34]} 30. Nxf6 {[%clk 0:01:09]}  Nxf6 {[%clk 0:01:34]} 31. Re3 {[%clk 0:00:57]}  gxf4 {[%clk 0:01:33]} 32. Rxe6 {[%clk 0:00:56]}  Ne4 {[%clk 0:01:33]} 33. Bxe4 {[%clk 0:00:45]}  dxe4 {[%clk 0:01:29]} 34. Rxe8+ {[%clk 0:00:44]}  Rxe8 {[%clk 0:01:30]} 35. Qg4+ {[%clk 0:00:44]}  Qd7 {[%clk 0:01:27]} 36. Qxd7+ {[%clk 0:00:39]}  Kxd7 {[%clk 0:01:27]} 37. Bxf4 {[%clk 0:00:40]}  e3 {[%clk 0:01:24]} 38. Re1 {[%clk 0:00:39]}  e2 {[%clk 0:01:24]} 39. Kc1 {[%clk 0:00:37]}  Bxg2 {[%clk 0:01:23]} 40. Kd2 {[%clk 0:00:36]}  Bf3 {[%clk 0:01:24]} 41. Bxh6 {[%clk 0:00:29]}  Bxh5 {[%clk 0:01:24]} 42. Rh1 {[%clk 0:00:28]}  Re6 {[%clk 0:01:23]} 43. Be3 {[%clk 0:00:28]}  Bf3 {[%clk 0:01:22]} 44. Rh7+ {[%clk 0:00:28]}  Re7 {[%clk 0:01:19]} 45. Rh6 {[%clk 0:00:26]}  Re6 {[%clk 0:01:19]} 46. Rh7+ {[%clk 0:00:26]}  Re7 {[%clk 0:01:20]} 47. Rh6 {[%clk 0:00:26]}  Re6 {[%clk 0:01:20]} 48. Rh8 {[%clk 0:00:27]}  Bg4 {[%clk 0:01:16]} 49. Bf2 {[%clk 0:00:25]}  Bf5 {[%clk 0:01:14]} 50. Rf8 {[%clk 0:00:24]}  Bd3 {[%clk 0:01:14]} 51. Rf7+ {[%clk 0:00:25]}  Re7 {[%clk 0:01:14]} 52. Rf6 {[%clk 0:00:25]}  Re6 {[%clk 0:01:14]} 53. Rf7+ {[%clk 0:00:25]}  Re7 {[%clk 0:01:14]} 54. Rxe7+ {[%clk 0:00:26]}  Kxe7 {[%clk 0:01:15]} 55. Ke1 {[%clk 0:00:25]}  Kd6 {[%clk 0:01:13]} 56. Kd2 {[%clk 0:00:25]}  Kd5 {[%clk 0:01:13]} 57. Ke1 {[%clk 0:00:25]}  Bc2 {[%clk 0:01:10]} 58. Bg3 {[%clk 0:00:23]}  Bxa4 {[%clk 0:01:06]} 59. Bc7 {[%clk 0:00:24]}  Bxb5 {[%clk 0:01:06]} 60. Bxb6 {[%clk 0:00:24]}  a4 {[%clk 0:01:07]} 61. Bc5 {[%clk 0:00:24]}  Ke4 {[%clk 0:01:05]} 62. Kxe2 {[%clk 0:00:25]}  Bc6 {[%clk 0:01:04]} 63. Kd2 {[%clk 0:00:25]}  Kf3 {[%clk 0:01:02]} 64. Bb4 {[%clk 0:00:24]}  Ke4 {[%clk 0:00:56]} 65. Kc1 {[%clk 0:00:24]}  Kd3 {[%clk 0:00:56]} 66. Kb2 {[%clk 0:00:25]}  Kd2 {[%clk 0:00:54]} 67. Ka3 {[%clk 0:00:26]}  Kc2 {[%clk 0:00:51]} 68. Ba5 {[%clk 0:00:25]}  Kd3 {[%clk 0:00:49]} 69. Kb4 {[%clk 0:00:23]}  Be8 {[%clk 0:00:45]} 70. d5 {[%clk 0:00:22]}  Bd7 {[%clk 0:00:44]} 71. d6 {[%clk 0:00:22]}  Be8 {[%clk 0:00:41]} 72. Ka3 {[%clk 0:00:20]}  Kc2 {[%clk 0:00:40]} 73. Bb4 {[%clk 0:00:20]}  Bd7 {[%clk 0:00:40]} 74. Ba5 {[%clk 0:00:20]}  Be8 {[%clk 0:00:36]} 75. Bb4 {[%clk 0:00:20]}  Bd7 {[%clk 0:00:36]} 76. Ba5 {[%clk 0:00:21]}  Be8 {[%clk 0:00:37]} 1/2-1/2


[Site "https://www.chess.com"]

[Event "Titled Tuesday Blitz January 31 Late 2023"]
[White "Can, Melih Kaan"]
[Black "Aarav Dengla"]
[WhiteFideId "6317383"]
[BlackFideId "45059756"]
[WhiteElo "2069"]
[BlackElo "2343"]
[Result "1-0"]
[Round "02"]
[TimeControl "180+2"]
[Date "2023.01.31"]
[WhiteClock "0:00:04"]
[BlackClock "0:00:17"]

1. d4 {[%clk 0:03:00]}  d5 {[%clk 0:02:34]} 2. c4 {[%clk 0:02:57]}  e6 {[%clk 0:02:33]} 3. Nf3 {[%clk 0:02:57]}  a6 {[%clk 0:02:33]} 4. g3 {[%clk 0:02:56]}  dxc4 {[%clk 0:02:31]} 5. Bg2 {[%clk 0:02:56]}  Nc6 {[%clk 0:02:31]} 6. O-O {[%clk 0:02:56]}  Nf6 {[%clk 0:02:31]} 7. e3 {[%clk 0:02:57]}  Rb8 {[%clk 0:02:31]} 8. Qe2 {[%clk 0:02:57]}  b5 {[%clk 0:02:30]} 9. b3 {[%clk 0:02:57]}  cxb3 {[%clk 0:02:30]} 10. axb3 {[%clk 0:02:55]}  Bb7 {[%clk 0:02:28]} 11. Nc3 {[%clk 0:02:26]}  Bb4 {[%clk 0:02:17]} 12. Bb2 {[%clk 0:02:20]}  O-O {[%clk 0:02:15]} 13. Rfc1 {[%clk 0:02:16]}  Qe7 {[%clk 0:02:13]} 14. Ng5 {[%clk 0:01:59]}  Na5 {[%clk 0:01:59]} 15. Bxb7 {[%clk 0:01:50]}  Rxb7 {[%clk 0:02:00]} 16. Qc2 {[%clk 0:01:49]}  c5 {[%clk 0:02:00]} 17. dxc5 {[%clk 0:01:44]}  Rc8 {[%clk 0:02:00]} 18. Nce4 {[%clk 0:01:41]}  Nxe4 {[%clk 0:01:49]} 19. Nxe4 {[%clk 0:01:42]}  Rd7 {[%clk 0:01:46]} 20. Bc3 {[%clk 0:01:21]}  Nc6 {[%clk 0:01:20]} 21. Rxa6 {[%clk 0:01:16]}  Nb8 {[%clk 0:01:10]} 22. Ra8 {[%clk 0:00:55]}  Bxc3 {[%clk 0:00:31]} 23. Qxc3 {[%clk 0:00:53]}  f5 {[%clk 0:00:32]} 24. Nd6 {[%clk 0:00:36]}  Rxd6 {[%clk 0:00:30]} 25. cxd6 {[%clk 0:00:36]}  Rxc3 {[%clk 0:00:31]} 26. Rxb8+ {[%clk 0:00:31]}  Kf7 {[%clk 0:00:29]} 27. dxe7 {[%clk 0:00:16]}  Rxc1+ {[%clk 0:00:29]} 28. Kg2 {[%clk 0:00:17]}  Kxe7 {[%clk 0:00:30]} 29. Rxb5 {[%clk 0:00:18]}  Rb1 {[%clk 0:00:29]} 30. Rb7+ {[%clk 0:00:17]}  Kf6 {[%clk 0:00:29]} 31. h4 {[%clk 0:00:16]}  h6 {[%clk 0:00:28]} 32. b4 {[%clk 0:00:15]}  g5 {[%clk 0:00:27]} 33. hxg5+ {[%clk 0:00:11]}  hxg5 {[%clk 0:00:28]} 34. b5 {[%clk 0:00:10]}  Rb2 {[%clk 0:00:28]} 35. b6 {[%clk 0:00:08]}  g4 {[%clk 0:00:27]} 36. Rb8 {[%clk 0:00:09]}  Ke5 {[%clk 0:00:27]} 37. b7 {[%clk 0:00:06]}  Rb1 {[%clk 0:00:26]} 38. Kh2 {[%clk 0:00:05]}  Ke4 {[%clk 0:00:23]} 39. Kg2 {[%clk 0:00:05]}  e5 {[%clk 0:00:23]} 40. Rc8 {[%clk 0:00:02]}  Rxb7 {[%clk 0:00:21]} 41. Rc4+ {[%clk 0:00:03]}  Kd5 {[%clk 0:00:22]} 42. Ra4 {[%clk 0:00:03]}  Ke6 {[%clk 0:00:21]} 43. Ra5 {[%clk 0:00:03]}  Kf6 {[%clk 0:00:20]} 44. Ra6+ {[%clk 0:00:03]}  Kg5 {[%clk 0:00:21]} 45. Ra5 {[%clk 0:00:04]}  Re7 {[%clk 0:00:20]} 46. Rb5 {[%clk 0:00:04]}  Re6 {[%clk 0:00:20]} 47. Ra5 {[%clk 0:00:04]}  Kf6 {[%clk 0:00:21]} 48. Rb5 {[%clk 0:00:05]}  Rd6 {[%clk 0:00:21]} 49. Ra5 {[%clk 0:00:05]}  Ke6 {[%clk 0:00:21]} 50. Rb5 {[%clk 0:00:06]}  Rc6 {[%clk 0:00:22]} 51. Ra5 {[%clk 0:00:06]}  Rb6 {[%clk 0:00:22]} 52. Rc5 {[%clk 0:00:06]}  Kd6 {[%clk 0:00:22]} 53. Ra5 {[%clk 0:00:07]}  Rc6 {[%clk 0:00:23]} 54. Rb5 {[%clk 0:00:07]}  Ra6 {[%clk 0:00:23]} 55. Rb8 {[%clk 0:00:07]}  Kd5 {[%clk 0:00:22]} 56. Rd8+ {[%clk 0:00:07]}  Ke4 {[%clk 0:00:22]} 57. Rb8 {[%clk 0:00:06]}  Kd3 {[%clk 0:00:21]} 58. Rb3+ {[%clk 0:00:05]}  Kc4 {[%clk 0:00:21]} 59. Rb8 {[%clk 0:00:05]}  Ra5 {[%clk 0:00:19]} 60. Rd8 {[%clk 0:00:05]}  Kc3 {[%clk 0:00:20]} 61. Rd7 {[%clk 0:00:05]}  Kc2 {[%clk 0:00:20]} 62. Rf7 {[%clk 0:00:05]}  e4 {[%clk 0:00:18]} 63. Rd7 {[%clk 0:00:06]}  Kc1 {[%clk 0:00:18]} 64. Rd6 {[%clk 0:00:05]}  Rc5 {[%clk 0:00:18]} 65. Rd7 {[%clk 0:00:06]}  Kc2 {[%clk 0:00:18]} 66. Rd6 {[%clk 0:00:06]}  Kc3 {[%clk 0:00:18]} 67. Rd4 {[%clk 0:00:06]}  Rb5 {[%clk 0:00:18]} 68. Rd6 {[%clk 0:00:06]}  Kc4 {[%clk 0:00:18]} 69. Rd8 {[%clk 0:00:06]}  Kc5 {[%clk 0:00:18]} 70. Rd4 {[%clk 0:00:06]}  Rb2 {[%clk 0:00:16]} 71. Rd8 {[%clk 0:00:06]}  Ra2 {[%clk 0:00:15]} 72. Rf8 {[%clk 0:00:06]}  Kc4 {[%clk 0:00:14]} 73. Rxf5 {[%clk 0:00:06]}  Kd3 {[%clk 0:00:15]} 74. Rf4 {[%clk 0:00:06]}  Ke2 {[%clk 0:00:15]} 75. Rxg4 {[%clk 0:00:04]}  Ke1 {[%clk 0:00:16]} 76. Rf4 {[%clk 0:00:04]}  Re2 {[%clk 0:00:16]} 77. g4 {[%clk 0:00:04]}  Kd2 {[%clk 0:00:16]} 78. g5 {[%clk 0:00:04]}  Kd3 {[%clk 0:00:16]} 79. Kg3 {[%clk 0:00:04]}  Ra2 {[%clk 0:00:16]} 80. Kg4 {[%clk 0:00:03]}  Ra1 {[%clk 0:00:16]} 81. g6 {[%clk 0:00:03]}  Rg1+ {[%clk 0:00:16]} 82. Kf5 {[%clk 0:00:04]}  Rg2 {[%clk 0:00:17]} 83. Kf6 {[%clk 0:00:03]}  Rg1 {[%clk 0:00:16]} 84. g7 {[%clk 0:00:03]}  Rg2 {[%clk 0:00:17]} 85. Kf7 {[%clk 0:00:04]} 1-0


[Site "https://www.chess.com"]

[Event "Titled Tuesday Blitz January 31 Late 2023"]
[White "Lucassen, Mickey"]
[Black "Mendez Fortes, Eduardo Jesus"]
[WhiteFideId "12919110"]
[BlackFideId "3502376"]
[WhiteElo "2023"]
[BlackElo "2250"]
[Result "0-1"]
[Round "02"]
[TimeControl "180+2"]
[Date "2023.01.31"]
[WhiteClock "0:00:07"]
[BlackClock "0:01:13"]

1. d4 {[%clk 0:03:00]}  Nf6 {[%clk 0:02:59]} 2. Nc3 {[%clk 0:03:01]}  d5 {[%clk 0:02:59]} 3. Bf4 {[%clk 0:03:02]}  a6 {[%clk 0:02:58]} 4. e3 {[%clk 0:03:02]}  e6 {[%clk 0:02:58]} 5. g4 {[%clk 0:03:02]}  b5 {[%clk 0:02:59]} 6. g5 {[%clk 0:03:02]}  Nfd7 {[%clk 0:02:59]} 7. Nf3 {[%clk 0:03:00]}  Bb7 {[%clk 0:02:59]} 8. h4 {[%clk 0:02:59]}  c5 {[%clk 0:02:59]} 9. Ne2 {[%clk 0:02:58]}  Nc6 {[%clk 0:02:58]} 10. c3 {[%clk 0:02:58]}  Qb6 {[%clk 0:02:58]} 11. h5 {[%clk 0:02:57]}  b4 {[%clk 0:02:50]} 12. Rh4 {[%clk 0:02:38]}  Be7 {[%clk 0:02:48]} 13. Rg4 {[%clk 0:02:36]}  O-O-O {[%clk 0:02:45]} 14. Bh3 {[%clk 0:02:27]}  g6 {[%clk 0:02:28]} 15. h6 {[%clk 0:02:27]}  c4 {[%clk 0:02:23]} 16. Bh2 {[%clk 0:02:19]}  Qa5 {[%clk 0:02:21]} 17. Rf4 {[%clk 0:02:11]}  Rhf8 {[%clk 0:02:20]} 18. Qd2 {[%clk 0:02:05]}  Bd6 {[%clk 0:02:20]} 19. Rg4 {[%clk 0:01:58]}  Bxh2 {[%clk 0:02:18]} 20. Nxh2 {[%clk 0:01:59]}  Kb8 {[%clk 0:02:18]} 21. f4 {[%clk 0:01:56]}  Ka7 {[%clk 0:02:13]} 22. Nf3 {[%clk 0:01:56]}  Bc8 {[%clk 0:02:11]} 23. Ne5 {[%clk 0:01:54]}  Ndxe5 {[%clk 0:02:00]} 24. fxe5 {[%clk 0:01:53]}  bxc3 {[%clk 0:02:00]} 25. bxc3 {[%clk 0:01:51]}  Bd7 {[%clk 0:02:00]} 26. Bg2 {[%clk 0:01:36]}  Ne7 {[%clk 0:01:59]} 27. e4 {[%clk 0:01:33]}  dxe4 {[%clk 0:01:59]} 28. Bxe4 {[%clk 0:01:34]}  Bc6 {[%clk 0:01:57]} 29. Ng3 {[%clk 0:01:28]}  Bxe4 {[%clk 0:01:56]} 30. Nxe4 {[%clk 0:01:28]}  Nd5 {[%clk 0:01:52]} 31. Kf1 {[%clk 0:01:17]}  Rb8 {[%clk 0:01:52]} 32. Kg2 {[%clk 0:01:15]}  Qa3 {[%clk 0:01:50]} 33. Rc1 {[%clk 0:01:06]}  Rb2 {[%clk 0:01:48]} 34. Rc2 {[%clk 0:01:06]}  Rfb8 {[%clk 0:01:49]} 35. Kh3 {[%clk 0:00:44]}  Rxc2 {[%clk 0:01:48]} 36. Qxc2 {[%clk 0:00:44]}  Rb2 {[%clk 0:01:48]} 37. Qd1 {[%clk 0:00:39]}  Qxa2 {[%clk 0:01:42]} 38. Qf3 {[%clk 0:00:35]}  Kb6 {[%clk 0:01:39]} 39. Nd6 {[%clk 0:00:32]}  Rh2+ {[%clk 0:01:30]} 40. Kg3 {[%clk 0:00:31]}  Rc2 {[%clk 0:01:21]} 41. Ne4 {[%clk 0:00:18]}  Qb1 {[%clk 0:01:15]} 42. Qxf7 {[%clk 0:00:08]}  Qg1+ {[%clk 0:01:14]} 43. Kf3 {[%clk 0:00:07]}  Qf1+ {[%clk 0:01:13]} 0-1


[Site "https://www.chess.com"]

[Event "Titled Tuesday Blitz January 31 Late 2023"]
[White "Abdyzhaparov, Aidar"]
[Black "Schekachikhin, Maksim"]
[WhiteFideId "13800361"]
[BlackFideId "24177830"]
[WhiteElo "1978"]
[BlackElo "2371"]
[Result "0-1"]
[Round "02"]
[TimeControl "180+2"]
[Date "2023.01.31"]
[WhiteClock "0:00:21"]
[BlackClock "0:00:19"]

1. Nf3 {[%clk 0:03:00]}  d5 {[%clk 0:02:58]} 2. c4 {[%clk 0:03:01]}  e6 {[%clk 0:02:57]} 3. g3 {[%clk 0:03:01]}  Nf6 {[%clk 0:02:56]} 4. Bg2 {[%clk 0:03:02]}  d4 {[%clk 0:02:53]} 5. e3 {[%clk 0:03:01]}  c5 {[%clk 0:02:52]} 6. b4 {[%clk 0:03:01]}  dxe3 {[%clk 0:02:49]} 7. fxe3 {[%clk 0:03:02]}  cxb4 {[%clk 0:02:49]} 8. O-O {[%clk 0:02:58]}  Nbd7 {[%clk 0:02:46]} 9. Bb2 {[%clk 0:02:56]}  Qc7 {[%clk 0:02:45]} 10. Qe2 {[%clk 0:02:51]}  b6 {[%clk 0:02:43]} 11. a3 {[%clk 0:02:51]}  Bb7 {[%clk 0:02:40]} 12. axb4 {[%clk 0:02:48]}  Bxb4 {[%clk 0:02:39]} 13. Na3 {[%clk 0:02:48]}  a6 {[%clk 0:02:35]} 14. d4 {[%clk 0:02:38]}  O-O {[%clk 0:02:34]} 15. d5 {[%clk 0:02:34]}  exd5 {[%clk 0:02:31]} 16. Nh4 {[%clk 0:02:32]}  d4 {[%clk 0:02:00]} 17. Bxb7 {[%clk 0:02:16]}  Qxb7 {[%clk 0:01:59]} 18. Bxd4 {[%clk 0:02:15]}  Qc6 {[%clk 0:01:41]} 19. Nf5 {[%clk 0:02:08]}  Rfe8 {[%clk 0:01:35]} 20. Nxg7 {[%clk 0:01:42]}  Kxg7 {[%clk 0:01:33]} 21. Qg4+ {[%clk 0:01:41]}  Kf8 {[%clk 0:01:30]} 22. Qh4 {[%clk 0:01:35]}  Re6 {[%clk 0:01:28]} 23. Nb5 {[%clk 0:01:21]}  axb5 {[%clk 0:00:56]} 24. cxb5 {[%clk 0:01:22]}  Qe4 {[%clk 0:00:34]} 25. Bxf6 {[%clk 0:01:11]}  Nxf6 {[%clk 0:00:28]} 26. Qxe4 {[%clk 0:01:00]}  Nxe4 {[%clk 0:00:27]} 27. Rxa8+ {[%clk 0:01:00]}  Kg7 {[%clk 0:00:28]} 28. Rc8 {[%clk 0:00:58]}  Bc5 {[%clk 0:00:27]} 29. Rc6 {[%clk 0:00:57]}  Bxe3+ {[%clk 0:00:27]} 30. Kg2 {[%clk 0:00:57]}  Ng5 {[%clk 0:00:26]} 31. Rc7 {[%clk 0:00:52]}  Rf6 {[%clk 0:00:24]} 32. Rxf6 {[%clk 0:00:39]}  Kxf6 {[%clk 0:00:25]} 33. h4 {[%clk 0:00:40]}  Ne6 {[%clk 0:00:25]} 34. Rb7 {[%clk 0:00:39]}  Bc5 {[%clk 0:00:24]} 35. Kf3 {[%clk 0:00:39]}  h5 {[%clk 0:00:25]} 36. Ke4 {[%clk 0:00:38]}  Nd4 {[%clk 0:00:23]} 37. Kf4 {[%clk 0:00:33]}  Nxb5 {[%clk 0:00:23]} 38. g4 {[%clk 0:00:34]}  hxg4 {[%clk 0:00:21]} 39. Kxg4 {[%clk 0:00:35]}  Nd4 {[%clk 0:00:21]} 40. Rb8 {[%clk 0:00:34]}  Nf5 {[%clk 0:00:20]} 41. h5 {[%clk 0:00:33]}  Nh6+ {[%clk 0:00:21]} 42. Kh4 {[%clk 0:00:32]}  Bf2+ {[%clk 0:00:21]} 43. Kh3 {[%clk 0:00:32]}  Kg5 {[%clk 0:00:21]} 44. Kg2 {[%clk 0:00:30]}  Bc5 {[%clk 0:00:20]} 45. Rb7 {[%clk 0:00:29]}  Kxh5 {[%clk 0:00:20]} 46. Kf3 {[%clk 0:00:30]}  Kg6 {[%clk 0:00:20]} 47. Ke4 {[%clk 0:00:30]}  f5+ {[%clk 0:00:20]} 48. Kd5 {[%clk 0:00:31]}  Kg5 {[%clk 0:00:20]} 49. Rb8 {[%clk 0:00:32]}  Ng4 {[%clk 0:00:20]} 50. Rg8+ {[%clk 0:00:32]}  Kf4 {[%clk 0:00:20]} 51. Rg7 {[%clk 0:00:29]}  Nf6+ {[%clk 0:00:20]} 52. Ke6 {[%clk 0:00:29]}  Ne4 {[%clk 0:00:20]} 53. Rg2 {[%clk 0:00:28]}  Kf3 {[%clk 0:00:20]} 54. Rb2 {[%clk 0:00:24]}  f4 {[%clk 0:00:20]} 55. Rb3+ {[%clk 0:00:24]}  Be3 {[%clk 0:00:20]} 56. Kf5 {[%clk 0:00:22]}  Nd6+ {[%clk 0:00:20]} 57. Ke6 {[%clk 0:00:21]}  Nc4 {[%clk 0:00:19]} 58. Kf5 {[%clk 0:00:22]}  Kg3 {[%clk 0:00:19]} 59. Ke4 {[%clk 0:00:21]}  Nd2+ {[%clk 0:00:19]} 0-1


[Site "https://www.chess.com"]

[Event "Titled Tuesday Blitz January 31 Late 2023"]
[White "Rian, Kapriaga"]
[Black "Fiorito, Francisco"]
[WhiteFideId "7103263"]
[BlackFideId "180165"]
[WhiteElo "2089"]
[BlackElo "2305"]
[Result "0-1"]
[Round "02"]
[TimeControl "180+2"]
[Date "2023.01.31"]
[WhiteClock "0:00:01"]
[BlackClock "0:00:57"]

1. d4 {[%clk 0:03:00]}  Nf6 {[%clk 0:03:00]} 2. Nf3 {[%clk 0:03:00]}  g6 {[%clk 0:02:59]} 3. Bg5 {[%clk 0:02:57]}  Bg7 {[%clk 0:02:56]} 4. Nbd2 {[%clk 0:02:57]}  d5 {[%clk 0:02:56]} 5. e3 {[%clk 0:02:55]}  h6 {[%clk 0:02:56]} 6. Bh4 {[%clk 0:02:55]}  O-O {[%clk 0:02:56]} 7. Be2 {[%clk 0:02:54]}  c5 {[%clk 0:02:56]} 8. c3 {[%clk 0:02:54]}  Nbd7 {[%clk 0:02:50]} 9. O-O {[%clk 0:02:53]}  Qc7 {[%clk 0:02:45]} 10. Bg3 {[%clk 0:02:53]}  Qb6 {[%clk 0:02:44]} 11. Qb3 {[%clk 0:02:52]}  Nb8 {[%clk 0:02:26]} 12. Qa3 {[%clk 0:02:49]}  cxd4 {[%clk 0:02:23]} 13. exd4 {[%clk 0:02:32]}  Nc6 {[%clk 0:02:22]} 14. Rfe1 {[%clk 0:02:31]}  Bf5 {[%clk 0:02:18]} 15. Bf1 {[%clk 0:02:15]}  Rfe8 {[%clk 0:02:17]} 16. Ne5 {[%clk 0:02:14]}  Bf8 {[%clk 0:02:10]} 17. Qb3 {[%clk 0:02:12]}  Rad8 {[%clk 0:02:01]} 18. Qxb6 {[%clk 0:01:51]}  axb6 {[%clk 0:01:59]} 19. a4 {[%clk 0:01:36]}  Rc8 {[%clk 0:01:55]} 20. h3 {[%clk 0:01:28]}  g5 {[%clk 0:01:44]} 21. Nxc6 {[%clk 0:01:12]}  bxc6 {[%clk 0:01:31]} 22. Ba6 {[%clk 0:01:11]}  Rcd8 {[%clk 0:01:25]} 23. Bc7 {[%clk 0:01:07]}  Ra8 {[%clk 0:01:25]} 24. Bb7 {[%clk 0:00:34]}  Ra7 {[%clk 0:01:24]} 25. Bxc6 {[%clk 0:00:34]}  Rxc7 {[%clk 0:01:24]} 26. Bxe8 {[%clk 0:00:34]}  Nxe8 {[%clk 0:01:25]} 27. a5 {[%clk 0:00:32]}  bxa5 {[%clk 0:01:25]} 28. Rxa5 {[%clk 0:00:32]}  e6 {[%clk 0:01:26]} 29. Ra8 {[%clk 0:00:15]}  Nf6 {[%clk 0:01:21]} 30. Rea1 {[%clk 0:00:12]}  Rb7 {[%clk 0:01:17]} 31. b4 {[%clk 0:00:12]}  Rc7 {[%clk 0:01:17]} 32. R1a3 {[%clk 0:00:09]}  Kg7 {[%clk 0:01:17]} 33. f3 {[%clk 0:00:08]}  Bd6 {[%clk 0:01:16]} 34. Kf2 {[%clk 0:00:07]}  h5 {[%clk 0:01:15]} 35. R8a7 {[%clk 0:00:06]}  Rc8 {[%clk 0:01:02]} 36. Rb7 {[%clk 0:00:06]}  h4 {[%clk 0:01:00]} 37. Raa7 {[%clk 0:00:05]}  Bg6 {[%clk 0:01:00]} 38. Nf1 {[%clk 0:00:03]}  Rxc3 {[%clk 0:00:59]} 39. Ne3 {[%clk 0:00:02]}  Bd3 {[%clk 0:00:57]} 40. Ng4 {[%clk 0:00:01]}  Bg3+ {[%clk 0:00:57]} 0-1


[Site "https://www.chess.com"]

[Event "Titled Tuesday Blitz January 31 Late 2023"]
[White "Gomes, Luiz Alexandre de Souza"]
[Black "Goldin, Alexander"]
[WhiteFideId "2102790"]
[BlackFideId "2019540"]
[WhiteElo "2254"]
[BlackElo "2542"]
[Result "0-1"]
[Round "02"]
[TimeControl "180+2"]
[Date "2023.01.31"]
[WhiteClock "0:01:02"]
[BlackClock "0:00:48"]

1. e4 {[%clk 0:02:19]}  c5 {[%clk 0:02:49]} 2. Nf3 {[%clk 0:02:18]}  Nc6 {[%clk 0:02:49]} 3. Bb5 {[%clk 0:02:18]}  g6 {[%clk 0:02:47]} 4. O-O {[%clk 0:02:18]}  Bg7 {[%clk 0:02:46]} 5. c3 {[%clk 0:02:18]}  Nf6 {[%clk 0:02:44]} 6. d3 {[%clk 0:02:19]}  Qb6 {[%clk 0:02:38]} 7. Ba4 {[%clk 0:02:18]}  O-O {[%clk 0:02:36]} 8. Nbd2 {[%clk 0:02:18]}  d6 {[%clk 0:02:36]} 9. h3 {[%clk 0:02:17]}  a6 {[%clk 0:02:31]} 10. Re1 {[%clk 0:02:17]}  Qc7 {[%clk 0:02:27]} 11. Nf1 {[%clk 0:02:17]}  b5 {[%clk 0:02:26]} 12. Bc2 {[%clk 0:02:16]}  e5 {[%clk 0:02:25]} 13. Bg5 {[%clk 0:02:14]}  Be6 {[%clk 0:02:17]} 14. Ne3 {[%clk 0:02:14]}  h6 {[%clk 0:02:06]} 15. Bxf6 {[%clk 0:02:14]}  Bxf6 {[%clk 0:02:06]} 16. Bb3 {[%clk 0:02:15]}  Ne7 {[%clk 0:02:03]} 17. Nd5 {[%clk 0:02:09]}  Bxd5 {[%clk 0:02:02]} 18. Bxd5 {[%clk 0:02:10]}  Nxd5 {[%clk 0:02:02]} 19. exd5 {[%clk 0:02:11]}  Bg7 {[%clk 0:02:03]} 20. a4 {[%clk 0:02:07]}  f5 {[%clk 0:02:01]} 21. axb5 {[%clk 0:02:07]}  axb5 {[%clk 0:02:01]} 22. Qb3 {[%clk 0:02:07]}  Qb7 {[%clk 0:01:53]} 23. Nd2 {[%clk 0:01:57]}  Ra6 {[%clk 0:01:41]} 24. Rxa6 {[%clk 0:01:56]}  Qxa6 {[%clk 0:01:41]} 25. f4 {[%clk 0:01:36]}  exf4 {[%clk 0:01:31]} 26. Re6 {[%clk 0:01:35]}  Kh7 {[%clk 0:01:31]} 27. Nf3 {[%clk 0:01:35]}  Rf7 {[%clk 0:01:23]} 28. Kh2 {[%clk 0:01:35]}  Bf6 {[%clk 0:01:11]} 29. Qd1 {[%clk 0:01:32]}  Kg7 {[%clk 0:01:09]} 30. Qe2 {[%clk 0:01:32]}  Qb6 {[%clk 0:01:06]} 31. Nd2 {[%clk 0:01:23]}  Qc7 {[%clk 0:01:04]} 32. Nf3 {[%clk 0:01:20]}  Re7 {[%clk 0:01:02]} 33. Qe1 {[%clk 0:01:10]}  Qd7 {[%clk 0:01:01]} 34. Re2 {[%clk 0:01:08]}  Rxe2 {[%clk 0:00:58]} 35. Qxe2 {[%clk 0:01:09]}  Qe7 {[%clk 0:00:58]} 36. Qc2 {[%clk 0:01:08]}  g5 {[%clk 0:00:57]} 37. Qb3 {[%clk 0:01:07]}  g4 {[%clk 0:00:57]} 38. Ng1 {[%clk 0:01:05]}  f3 {[%clk 0:00:51]} 39. gxf3 {[%clk 0:01:04]}  Qe1 {[%clk 0:00:50]} 40. Qc2 {[%clk 0:01:03]}  Be5+ {[%clk 0:00:50]} 41. Kg2 {[%clk 0:01:02]}  Qg3+ {[%clk 0:00:50]} 42. Kf1 {[%clk 0:01:02]}  gxh3 {[%clk 0:00:48]} 0-1


[Site "https://www.chess.com"]